[Event "XIII Mediterranean Championship 2023"]
[Site "Castell-Platja d Aro"]
[Date "2023.11.06"]
[Round "4.23"]
[White "Diaz Comas, Jordi"]
[Black "Mateu Guiu, Esteve"]
[Result "0-1"]
[ECO "B50"]
[WhiteElo "1837"]
[BlackElo "2075"]
[Annotator "NA RC"]
[PlyCount "46"]
[EventDate "2023.10.26"]
[EventType "swiss"]
[EventCountry "ESP"]
[SourceTitle "playchess.com"]
[Source "ChessBase"]
[SourceQuality "1"]
[TimeControl "5400+30"]

1. e4 {[%emt 0:00:04]} c5 {[%emt 0:00:09]} 2. Nf3 {[%emt 0:00:20]} d6 {[%emt 0:00:06]} 3. c3 {[%emt 0:00:25]} Nf6 {[%emt 0:00:33]} 4. Bd3 {[%emt 0:01:50]} Bg4 {[%emt 0:00:51]} 5. h3 {[%emt 0:08:52]} Bh5 {[%emt 0:00:15]} 6. g4 {[%emt 0:02:17]} Bg6 {[%emt 0:00:05]} 7. Nh4 {[%emt 0:06:40]} Nc6 {[%emt 0:03:55]} 8. Nxg6 {[%emt 0:09:14]} hxg6 {[%emt 0:00:10]} 9. Qe2 {[%emt 0:02:59]} d5 {[%emt 0:02:41]} 10. e5 {[%emt 0:03:06]} c4 {[%emt 0:01:14]} 11. Bc2 {[%emt 0:08:06]} d4 {[%emt 0:04:37]} 12. Qxc4 {[%emt 0:15:20]} Nxg4 {[%emt 0:02:19]} 13. e6 {[%emt 0:00:24]} f5 {[%emt 0:00:45]} 14. b4 {[%emt 0:06:06]} Nge5 {[%emt 0:05:27]} 15. Qf1 {[%emt 0:04:19]} Qd5 {[%emt 0:05:00]} 16. Bb3 {[%emt 0:02:03]} Qf3 {[%emt 0:02:07]} 17. Bc2 {[%emt 0:04:09]} d3 {[%emt 0:06:25]} 18. Ba4 {[%emt 0:04:03]} Qe4+ {[%emt 0:00:54]} 19. Kd1 {[%emt 0:00:11]} Qf3+ {[%emt 0:00:08]} 20. Ke1 {[%emt 0:00:08]} O-O-O {[%emt 0:02:08]} 21. Na3 {[%emt 0:00:49]} Rh4 {[%emt 0:00:16]} 22. Nc2 {[%emt 0:02:27]} dxc2 {[%emt 0:02:58]} 23. Bxc2 {[%emt 0:00:02]} Nd3+ {[%emt 0:00:46]} 0-1

[Event "XIII Mediterranean Championship 2023"]
[Site "Castell-Platja d Aro"]
[Date "2023.11.06"]
[Round "4.24"]
[White "Garcia Rodriguez, Laia"]
[Black "Pham Guerrero, Sergi"]
[Result "0-1"]
[ECO "B26"]
[WhiteElo "1811"]
[BlackElo "2072"]
[Annotator "NA RC"]
[PlyCount "74"]
[EventDate "2023.10.26"]
[EventType "swiss"]
[EventCountry "ESP"]
[SourceTitle "playchess.com"]
[Source "ChessBase"]
[SourceQuality "1"]
[TimeControl "5400+30"]

1. e4 {[%emt 0:00:22]} c5 {[%emt 0:00:09]} 2. Nc3 {[%emt 0:00:42]} Nc6 {[%emt 0:00:12]} 3. g3 {[%emt 0:00:21]} g6 {[%emt 0:00:19]} 4. Bg2 {[%emt 0:00:40]} Bg7 {[%emt 0:00:12]} 5. d3 {[%emt 0:00:34]} d6 {[%emt 0:00:19]} 6. Be3 {[%emt 0:00:31]} Rb8 {[%emt 0:00:33]} 7. Qd2 {[%emt 0:00:55]} b5 {[%emt 0:00:45]} 8. Nge2 {[%emt 0:01:07]} b4 {[%emt 0:01:14]} 9. Nd1 {[%emt 0:01:23]} Nd4 {[%emt 0:01:05]} 10. h3 {[%emt 0:02:02]} e6 {[%emt 0:01:34]} 11. O-O {[%emt 0:02:28]} h5 {[%emt 0:04:42]} 12. c3 {[%emt 0:12:48]} bxc3 {[%emt 0:01:21]} 13. bxc3 {[%emt 0:00:20]} Nxe2+ {[%emt 0:01:01]} 14. Qxe2 {[%emt 0:00:17]} Qa5 {[%emt 0:00:29]} 15. Qd2 {[%emt 0:08:07]} Ba6 {[%emt 0:03:43]} 16. f4 {[%emt 0:05:50]} Ne7 {[%emt 0:03:53]} 17. Rc1 {[%emt 0:07:26]} O-O {[%emt 0:01:04]} 18. c4 {[%emt 0:14:42]} Qa3 {[%emt 1:16:55]} 19. g4 hxg4 20. hxg4 {[%emt 0:06:46]} f5 {[%emt 0:00:00]} 21. exf5 {[%emt 0:01:21]} gxf5 {[%emt 0:01:30]} 22. g5 {[%emt 0:02:19]} Bb7 {[%emt 0:00:00]} 23. Bh3 {[%emt 0:06:27]} Nc6 {[%emt 0:00:00]} 24. Rb1 {[%emt 0:03:11]} Nd4 {[%emt 0:00:00]} 25. Bxd4 {[%emt 0:03:11]} Bxd4+ {[%emt 0:00:00]} 26. Nf2 {[%emt 0:00:56]} Qa6 {[%emt 0:00:00]} 27. Qe2 {[%emt 0:02:45]} Kf7 {[%emt 0:00:00]} 28. Rbe1 {[%emt 0:03:04]} Rbe8 {[%emt 0:00:00]} 29. Qh5+ {[%emt 0:01:52]} Ke7 {[%emt 0:00:00]} 30. Bxf5 {[%emt 0:02:29]} Kd7 {[%emt 0:00:00]} 31. Qh7+ {[%emt 0:05:37]} Re7 {[%emt 0:00:00]} 32. Bxe6+ {[%emt 0:00:48]} Kd8 {[%emt 0:00:00]} 33. Qg6 {[%emt 0:03:23]} d5 {[%emt 0:00:00]} 34. f5 {[%emt 0:01:43]} dxc4 {[%emt 0:00:00]} 35. dxc4 {[%emt 0:00:13]} Qd6 {[%emt 0:00:00]} 36. Bd5 {[%emt 0:01:12]} Qg3+ {[%emt 0:00:00]} 37. Kh1 {[%emt 0:00:25]} Rh8+ {[%emt 0:00:00]} 0-1

[Event "XIII Mediterranean Championship 2023"]
[Site "Castell-Platja d Aro"]
[Date "2023.11.06"]
[Round "4.25"]
[White "Lunin Bohomolets, Iliia"]
[Black "Garcia Paolicchi, Raul"]
[Result "0-1"]
[ECO "B07"]
[WhiteElo "1850"]
[BlackElo "2051"]
[Annotator "NA RC"]
[PlyCount "48"]
[EventDate "2023.10.26"]
[EventType "swiss"]
[EventCountry "ESP"]
[SourceTitle "playchess.com"]
[Source "ChessBase"]
[SourceQuality "1"]
[TimeControl "5400+30"]

1. e4 {[%emt 0:01:06]} d6 {[%emt 0:00:16]} 2. d4 {[%emt 0:01:50]} Nf6 {[%emt 0:00:10]} 3. Nc3 {[%emt 0:00:31]} e5 {[%emt 0:00:16]} 4. Bg5 {[%emt 0:01:25]} Be7 {[%emt 0:03:03]} 5. Nge2 {[%emt 0:05:52]} c6 {[%emt 0:05:48]} 6. f3 {[%emt 0:02:36]} Qb6 {[%emt 0:02:38]} 7. Qd2 {[%emt 0:10:17]} Qxb2 {[%emt 0:05:37]} 8. Rb1 {[%emt 0:00:11]} Qa3 {[%emt 0:00:07]} 9. Ng3 {[%emt 0:10:07]} Qa5 {[%emt 0:06:47]} 10. f4 {[%emt 0:03:09]} O-O {[%emt 0:05:49]} 11. Nh5 {[%emt 0:02:11]} Nbd7 {[%emt 1:05:29]} 12. Be2 {[%emt 0:09:31]} h6 {[%emt 0:00:00]} 13. Nxg7 {[%emt 0:08:28]} Kxg7 {[%emt 0:00:00]} 14. Bxh6+ {[%emt 0:02:21]} Kxh6 {[%emt 0:00:00]} 15. fxe5+ {[%emt 0:05:08]} Kh7 {[%emt 0:00:00]} 16. exf6 {[%emt 0:01:46]} Bxf6 {[%emt 0:00:00]} 17. Bd3 {[%emt 0:03:23]} Kg7 {[%emt 0:00:00]} 18. e5 {[%emt 0:04:58]} Nxe5 {[%emt 0:00:00]} 19. O-O {[%emt 0:06:24]} Ng4 {[%emt 0:00:00]} 20. Rxf6 {[%emt 0:02:40]} Qh5 {[%emt 0:00:00]} 21. Rf3 {[%emt 0:02:07]} Qxh2+ {[%emt 0:00:00]} 22. Kf1 {[%emt 0:00:05]} Qh1+ {[%emt 0:00:00]} 23. Ke2 {[%emt 0:00:02]} Qxg2+ {[%emt 0:00:00]} 24. Kd1 {[%emt 0:00:41]} Qxf3+ {[%emt 0:00:00]} 0-1

[Event "XIII Mediterranean Championship 2023"]
[Site "Castell-Platja d Aro"]
[Date "2023.11.06"]
[Round "4.26"]
[White "De Lussac, Estephe"]
[Black "Moran Cabezas, Eric"]
[Result "1-0"]
[ECO "B33"]
[WhiteElo "2013"]
[BlackElo "1736"]
[Annotator "NA RC"]
[PlyCount "91"]
[EventDate "2023.10.26"]
[EventType "swiss"]
[EventCountry "ESP"]
[SourceTitle "playchess.com"]
[Source "ChessBase"]
[SourceQuality "1"]
[TimeControl "5400+30"]

1. e4 {[%emt 1:31:00]} c5 {[%emt 1:31:00]} 2. Nf3 {[%emt 0:00:30]} Nc6 {[%emt 0:00:30]} 3. d4 {[%emt 0:00:30]} cxd4 {[%emt 0:00:30]} 4. Nxd4 {[%emt 0:00:30]} Nf6 {[%emt 0:00:30]} 5. Nc3 {[%emt 0:00:30]} e5 {[%emt 0:00:30]} 6. Ndb5 {[%emt 0:00:30]} d6 {[%emt 0:00:30]} 7. Nd5 {[%emt 0:00:30]} Nxd5 {[%emt 0:00:30]} 8. exd5 {[%emt 0:00:30]} Ne7 {[%emt 0:00:30]} 9. c4 {[%emt 0:00:30]} Nf5 {[%emt 0:00:30]} 10. Qa4 {[%emt 0:00:30]} Bd7 {[%emt 0:00:30]} 11. Qb4 {[%emt 0:00:30]} a6 {[%emt 0:00:30]} 12. Nc3 {[%emt 0:00:30]} Qc7 {[%emt 0:00:30]} 13. Bd3 {[%emt 0:00:30]} Be7 {[%emt 0:00:30]} 14. O-O {[%emt 0:00:30]} O-O {[%emt 0:00:30]} 15. Bd2 {[%emt 0:00:30]} Rab8 {[%emt 0:00:30]} 16. Rac1 {[%emt 0:00:30]} Qc5 {[%emt 0:00:30]} 17. Qxc5 {[%emt 0:00:30]} dxc5 {[%emt 0:00:30]} 18. Rfe1 {[%emt 0:00:30]} f6 {[%emt 0:00:30]} 19. f4 {[%emt 0:00:30]} Nd4 {[%emt 0:00:30]} 20. fxe5 {[%emt 0:00:30]} fxe5 {[%emt 0:00:30]} 21. Rxe5 {[%emt 0:00:30]} Bd6 {[%emt 0:00:30]} 22. Ree1 {[%emt 0:00:30]} b6 {[%emt 0:00:30]} 23. Rf1 {[%emt 0:00:30]} Bf5 {[%emt 0:00:30]} 24. Bxf5 {[%emt 0:00:30]} Nxf5 {[%emt 0:00:30]} 25. Rce1 {[%emt 0:00:30]} Nd4 {[%emt 0:00:30]} 26. Rxf8+ {[%emt 0:00:30]} Rxf8 {[%emt 0:00:30]} 27. Ne4 {[%emt 0:00:30]} Bb8 {[%emt 0:00:30]} 28. Ng5 {[%emt 0:00:30]} Rc8 {[%emt 0:00:30]} 29. Re7 {[%emt 0:00:30]} Rf8 {[%emt 0:00:30]} 30. Bc3 {[%emt 0:00:30]} Bd6 {[%emt 0:00:30]} 31. Re4 {[%emt 0:00:30]} Nf5 {[%emt 0:00:30]} 32. Nf3 {[%emt 0:00:30]} b5 {[%emt 0:00:30]} 33. b3 {[%emt 0:00:30]} bxc4 {[%emt 0:00:30]} 34. bxc4 {[%emt 0:00:30]} Rb8 {[%emt 0:00:30]} 35. Kf2 {[%emt 0:00:30]} h6 {[%emt 0:00:30]} 36. Re6 {[%emt 0:00:30]} Rd8 {[%emt 0:00:30]} 37. g4 {[%emt 0:00:30]} Ne7 {[%emt 0:00:30]} 38. Be5 {[%emt 0:00:30]} Nc8 {[%emt 0:00:30]} 39. Bxd6 {[%emt 0:00:30]} Nxd6 {[%emt 0:00:30]} 40. Nd2 {[%emt 0:00:30]} Kf7 {[%emt 0:00:30]} 41. Ke3 {[%emt 0:00:30]} a5 {[%emt 0:00:30]} 42. Kd3 {[%emt 0:00:30]} h5 {[%emt 0:00:30]} 43. h3 {[%emt 0:00:30]} hxg4 {[%emt 0:00:30]} 44. hxg4 {[%emt 0:00:30]} Nb7 {[%emt 0:00:30]} 45. Rc6 {[%emt 0:00:30]} Rh8 {[%emt 0:00:30]} 46. Rc7+ {[%emt 0:00:30]} 1-0

[Event "XIII Mediterranean Championship 2023"]
[Site "Castell-Platja d Aro"]
[Date "2023.11.06"]
[Round "4.27"]
[White "Leon Escoda, Manel"]
[Black "Alonso Gimenez, Mauro"]
[Result "0-1"]
[ECO "C41"]
[WhiteElo "1682"]
[BlackElo "1978"]
[Annotator "NA RC"]
[PlyCount "62"]
[EventDate "2023.10.26"]
[EventType "swiss"]
[EventCountry "ESP"]
[SourceTitle "playchess.com"]
[Source "ChessBase"]
[SourceQuality "1"]
[TimeControl "5400+30"]

1. e4 {[%emt 0:00:09]} e5 {[%emt 0:00:08]} 2. Nf3 {[%emt 0:00:29]} Qe7 {[%emt 0:00:29]} 3. Bc4 {[%emt 0:01:03]} g6 {[%emt 0:01:23]} 4. O-O {[%emt 0:05:13]} Bg7 {[%emt 0:00:36]} 5. d4 {[%emt 0:04:10]} d6 {[%emt 0:00:36]} 6. Nc3 {[%emt 0:06:16]} c6 {[%emt 0:00:18]} 7. dxe5 {[%emt 0:06:06]} dxe5 {[%emt 0:00:18]} 8. Bg5 {[%emt 0:08:37]} Nf6 {[%emt 0:00:47]} 9. Qe2 {[%emt 0:10:25]} O-O {[%emt 0:03:31]} 10. Rad1 {[%emt 0:00:28]} Nbd7 {[%emt 0:00:34]} 11. Rd2 {[%emt 0:02:22]} b5 {[%emt 0:02:10]} 12. Bb3 {[%emt 0:01:54]} a5 {[%emt 0:04:00]} 13. a4 {[%emt 0:03:31]} b4 {[%emt 0:01:49]} 14. Nb1 {[%emt 0:01:32]} Nc5 {[%emt 0:01:29]} 15. Bxf6 {[%emt 0:00:32]} Bxf6 {[%emt 0:00:20]} 16. Qe3 {[%emt 0:02:02]} Nxb3 {[%emt 0:02:20]} 17. cxb3 {[%emt 0:02:42]} Be6 {[%emt 0:05:27]} 18. Rc1 {[%emt 0:02:28]} c5 {[%emt 0:02:09]} 19. Rdc2 {[%emt 0:02:18]} Rac8 {[%emt 0:00:55]} 20. Nbd2 {[%emt 0:00:24]} Rfd8 {[%emt 0:02:24]} 21. Rxc5 {[%emt 0:02:25]} Rxc5 {[%emt 0:00:03]} 22. Rxc5 {[%emt 0:03:41]} Rxd2 {[%emt 0:00:54]} 23. Nxd2 {[%emt 0:09:24]} Bg5 {[%emt 0:00:02]} 24. f4 {[%emt 0:00:30]} Bxf4 {[%emt 0:00:10]} 25. Qf2 {[%emt 0:00:55]} Bxd2 {[%emt 0:00:07]} 26. Rxa5 {[%emt 0:00:30]} Qg5 {[%emt 1:10:31]} 27. h4 {[%emt 0:23:54]} Qh6 {[%emt 0:00:00]} 28. Qf6 {[%emt 0:00:00]} Be3+ {[%emt 0:00:00]} 29. Kf1 {[%emt 0:00:00]} Qf8 {[%emt 0:00:00]} 30. Ke2 {[%emt 0:00:00]} Bd4 {[%emt 0:00:00]} 31. Rxe5 {[%emt 0:00:00]} Qb8 {[%emt 0:00:00]} 0-1

[Event "XIII Mediterranean Championship 2023"]
[Site "Castell-Platja d Aro"]
[Date "2023.11.06"]
[Round "4.28"]
[White "Hernando Rodrigo, Inmaculada"]
[Black "Andreu Lopez, Santiago"]
[Result "0-1"]
[ECO "B06"]
[WhiteElo "1734"]
[BlackElo "1834"]
[Annotator "NA RC"]
[PlyCount "86"]
[EventDate "2023.10.26"]
[EventType "swiss"]
[EventCountry "ESP"]
[SourceTitle "playchess.com"]
[Source "ChessBase"]
[SourceQuality "1"]
[TimeControl "5400+30"]

1. e4 {[%emt 1:31:00]} g6 {[%emt 1:31:00]} 2. d4 {[%emt 0:00:30]} Bg7 {[%emt 0:00:30]} 3. Nf3 {[%emt 0:00:30]} d6 {[%emt 0:00:30]} 4. Be3 {[%emt 0:00:30]} Nf6 {[%emt 0:00:30]} 5. Bd3 {[%emt 0:00:30]} O-O {[%emt 0:00:30]} 6. O-O {[%emt 0:00:30]} Nbd7 {[%emt 0:00:30]} 7. h3 {[%emt 0:00:30]} c5 {[%emt 0:00:30]} 8. c3 {[%emt 0:00:30]} a6 {[%emt 0:00:30]} 9. Re1 {[%emt 0:00:30]} b5 {[%emt 0:00:30]} 10. e5 {[%emt 0:00:30]} dxe5 {[%emt 0:00:30]} 11. Nxe5 {[%emt 0:00:30]} Nd5 {[%emt 0:00:30]} 12. Be4 {[%emt 0:00:30]} Bb7 {[%emt 0:00:30]} 13. Nxd7 {[%emt 0:00:30]} Nxe3 {[%emt 0:00:30]} 14. Rxe3 {[%emt 0:00:30]} Bxe4 {[%emt 0:00:30]} 15. Rxe4 {[%emt 0:00:30]} Qxd7 {[%emt 0:00:30]} 16. Qe2 {[%emt 0:00:30]} cxd4 {[%emt 0:00:30]} 17. Rxe7 {[%emt 0:00:30]} d3 {[%emt 0:00:30]} 18. Qe3 {[%emt 0:00:30]} Qd6 {[%emt 0:00:30]} 19. Re4 {[%emt 0:00:30]} b4 {[%emt 0:00:30]} 20. a3 {[%emt 0:00:30]} Rad8 {[%emt 0:00:30]} 21. Nd2 {[%emt 0:00:30]} bxc3 {[%emt 0:00:30]} 22. bxc3 {[%emt 0:00:30]} Bxc3 {[%emt 0:00:30]} 23. Nc4 {[%emt 0:00:30]} Qf6 {[%emt 0:00:30]} 24. Rd1 {[%emt 0:00:30]} Bd4 {[%emt 0:00:30]} 25. Qf3 {[%emt 0:00:30]} Qc6 {[%emt 0:00:30]} 26. Ne5 {[%emt 0:00:30]} Bxe5 {[%emt 0:00:30]} 27. Rxe5 {[%emt 0:00:30]} Qc2 {[%emt 0:00:30]} 28. Re3 {[%emt 0:00:30]} d2 {[%emt 0:00:30]} 29. Rc3 {[%emt 0:00:30]} Qa4 {[%emt 0:00:30]} 30. Qe2 {[%emt 0:00:30]} Rfe8 {[%emt 0:00:30]} 31. Re3 {[%emt 0:00:30]} Rxe3 {[%emt 0:00:30]} 32. fxe3 {[%emt 0:00:30]} Qxa3 {[%emt 0:00:30]} 33. Kf2 {[%emt 0:00:30]} Qa2 {[%emt 0:00:30]} 34. e4 {[%emt 0:00:30]} Qc2 {[%emt 0:00:30]} 35. Ke3 {[%emt 0:00:30]} Re8 {[%emt 0:00:30]} 36. Qxd2 {[%emt 0:00:30]} Rxe4+ {[%emt 0:00:30]} 37. Kf3 {[%emt 0:00:30]} Qc6 {[%emt 0:00:30]} 38. Kg3 {[%emt 0:00:30]} Qf6 {[%emt 0:00:30]} 39. Rc1 {[%emt 0:00:30]} g5 {[%emt 0:00:30]} 40. Rc5 {[%emt 0:00:30]} h6 {[%emt 0:00:30]} 41. Rc8+ {[%emt 0:00:30]} Kg7 {[%emt 0:00:30]} 42. Qc3 {[%emt 0:00:30]} Rd4 {[%emt 0:00:30]} 43. Qf3 {[%emt 0:00:30]} Qe5+ {[%emt 0:00:30]} 0-1

[Event "XIII Mediterranean Championship 2023"]
[Site "Castell-Platja d Aro"]
[Date "2023.11.06"]
[Round "4.29"]
[White "Parramon Arimany, Marc"]
[Black "Vidal Traves, Marti"]
[Result "0-1"]
[ECO "C00"]
[WhiteElo "1834"]
[BlackElo "1631"]
[Annotator "NA RC"]
[PlyCount "118"]
[EventDate "2023.10.26"]
[EventType "swiss"]
[EventCountry "ESP"]
[SourceTitle "playchess.com"]
[Source "ChessBase"]
[SourceQuality "1"]
[TimeControl "5400+30"]

1. e4 {[%emt 1:31:00]} e6 {[%emt 1:31:00]} 2. d3 {[%emt 0:00:30]} d5 {[%emt 0:00:30]} 3. Nc3 {[%emt 0:00:30]} Nf6 {[%emt 0:00:30]} 4. Bg5 {[%emt 0:00:30]} c6 {[%emt 0:00:30]} 5. e5 {[%emt 0:00:30]} h6 {[%emt 0:00:30]} 6. Bh4 {[%emt 0:00:30]} g5 {[%emt 0:00:30]} 7. Bg3 {[%emt 0:00:30]} Nfd7 {[%emt 0:00:30]} 8. h4 {[%emt 0:00:30]} Bg7 {[%emt 0:00:30]} 9. hxg5 {[%emt 0:00:30]} Qxg5 {[%emt 0:00:30]} 10. Rh5 {[%emt 0:00:30]} Qe7 {[%emt 0:00:30]} 11. Qg4 {[%emt 0:00:30]} f5 {[%emt 0:00:30]} 12. Qe2 {[%emt 0:00:30]} d4 {[%emt 0:00:30]} 13. Nd1 {[%emt 0:00:30]} c5 {[%emt 0:00:30]} 14. f4 {[%emt 0:00:30]} Nc6 {[%emt 0:00:30]} 15. Bh4 {[%emt 0:00:30]} Qf7 {[%emt 0:00:30]} 16. g4 {[%emt 0:00:30]} fxg4 {[%emt 0:00:30]} 17. Qxg4 {[%emt 0:00:30]} Rg8 {[%emt 0:00:30]} 18. Qf3 {[%emt 0:00:30]} Nb4 {[%emt 0:00:30]} 19. Kd2 {[%emt 0:00:30]} Nd5 {[%emt 0:00:30]} 20. Ne2 {[%emt 0:00:30]} Nxe5 {[%emt 0:00:30]} 21. Rxe5 {[%emt 0:00:30]} Bxe5 {[%emt 0:00:30]} 22. Nf2 {[%emt 0:00:30]} Bxf4+ {[%emt 0:00:30]} 23. Nxf4 {[%emt 0:00:30]} Qxf4+ {[%emt 0:00:30]} 24. Qxf4 {[%emt 0:00:30]} Nxf4 {[%emt 0:00:30]} 25. Ne4 {[%emt 0:00:30]} Kf7 {[%emt 0:00:30]} 26. Nxc5 {[%emt 0:00:30]} e5 {[%emt 0:00:30]} 27. c3 {[%emt 0:00:30]} Rg1 {[%emt 0:00:30]} 28. Bf2 {[%emt 0:00:30]} Rh1 {[%emt 0:00:30]} 29. Ne4 {[%emt 0:00:30]} Bh3 {[%emt 0:00:30]} 30. Ng3 {[%emt 0:00:30]} Rh2 {[%emt 0:00:30]} 31. Ne4 {[%emt 0:00:30]} Bxf1 {[%emt 0:00:30]} 32. Rxf1 {[%emt 0:00:30]} Nh3 {[%emt 0:00:30]} 33. Ke1 {[%emt 0:00:30]} Nxf2 {[%emt 0:00:30]} 34. Nxf2 {[%emt 0:00:30]} Ke6 {[%emt 0:00:30]} 35. Ne4 {[%emt 0:00:30]} Rg8 {[%emt 0:00:30]} 36. Nf2 {[%emt 0:00:30]} Rf8 {[%emt 0:00:30]} 37. c4 {[%emt 0:00:30]} Kd7 {[%emt 0:00:30]} 38. b4 {[%emt 0:00:30]} h5 {[%emt 0:00:30]} 39. a4 {[%emt 0:00:30]} a5 {[%emt 0:00:30]} 40. bxa5 {[%emt 0:00:30]} Kc7 {[%emt 0:00:30]} 41. Ne4 {[%emt 0:00:30]} Rxf1+ {[%emt 0:00:30]} 42. Kxf1 {[%emt 0:00:30]} Ra2 {[%emt 0:00:30]} 43. Nf6 {[%emt 0:00:30]} Rxa4 {[%emt 0:00:30]} 44. Nxh5 {[%emt 0:00:30]} Rxa5 {[%emt 0:00:30]} 45. Nf6 {[%emt 0:00:30]} b5 {[%emt 0:00:30]} 46. cxb5 {[%emt 0:00:30]} Rxb5 {[%emt 0:00:30]} 47. Ke2 {[%emt 0:00:30]} Rb2+ {[%emt 0:00:30]} 48. Kf3 {[%emt 0:00:30]} Kd6 {[%emt 0:00:30]} 49. Ne4+ {[%emt 0:00:30]} Ke6 {[%emt 0:00:30]} 50. Kg4 {[%emt 0:00:30]} Rb1 {[%emt 0:00:30]} 51. Kf3 {[%emt 0:00:30]} Re1 {[%emt 0:00:30]} 52. Nf2 {[%emt 0:00:30]} Kf5 {[%emt 0:00:30]} 53. Ng4 {[%emt 0:00:30]} Rf1+ {[%emt 0:00:30]} 54. Nf2 {[%emt 0:00:30]} Rxf2+ {[%emt 0:00:30]} 55. Kxf2 {[%emt 0:00:30]} Kf4 {[%emt 0:00:30]} 56. Ke2 {[%emt 0:00:30]} Kg3 {[%emt 0:00:30]} 57. Kd2 {[%emt 0:00:30]} Kf2 {[%emt 0:00:30]} 58. Kd1 {[%emt 0:00:30]} Ke3 {[%emt 0:00:30]} 59. Kc2 {[%emt 0:00:30]} Ke2 {[%emt 0:00:30]} 0-1

[Event "XIII Mediterranean Championship 2023"]
[Site "Castell-Platja d Aro"]
[Date "2023.11.06"]
[Round "4.30"]
[White "Teixidor Banus, Josep Maria"]
[Black "Vidal Palou, Jordi"]
[Result "0-1"]
[ECO "B13"]
[WhiteElo "1669"]
[BlackElo "1620"]
[Annotator "NA RC"]
[PlyCount "94"]
[EventDate "2023.10.26"]
[EventType "swiss"]
[EventCountry "ESP"]
[SourceTitle "playchess.com"]
[Source "ChessBase"]
[SourceQuality "1"]
[TimeControl "5400+30"]

1. d4 {[%emt 1:31:00]} d5 {[%emt 1:31:00]} 2. Bf4 {[%emt 0:00:30]} c5 {[%emt 0:00:30]} 3. e3 {[%emt 0:00:30]} cxd4 {[%emt 0:00:30]} 4. exd4 {[%emt 0:00:30]} Qb6 {[%emt 0:00:30]} 5. Nc3 {[%emt 0:00:30]} e6 {[%emt 0:00:30]} 6. Nb5 {[%emt 0:00:30]} Na6 {[%emt 0:00:30]} 7. Nf3 {[%emt 0:00:30]} Bd7 {[%emt 0:00:30]} 8. a4 {[%emt 0:00:30]} Nf6 {[%emt 0:00:30]} 9. c3 {[%emt 0:00:30]} Be7 {[%emt 0:00:30]} 10. Ne5 {[%emt 0:00:30]} O-O {[%emt 0:00:30]} 11. Nxd7 {[%emt 0:00:30]} Nxd7 {[%emt 0:00:30]} 12. Bd3 {[%emt 0:00:30]} Nf6 {[%emt 0:00:30]} 13. g4 {[%emt 0:00:30]} Ne4 {[%emt 0:00:30]} 14. f3 {[%emt 0:00:30]} Bh4+ {[%emt 0:00:30]} 15. Bg3 {[%emt 0:00:30]} Nxg3 {[%emt 0:00:30]} 16. hxg3 {[%emt 0:00:30]} Bxg3+ {[%emt 0:00:30]} 17. Kf1 {[%emt 0:00:30]} f5 {[%emt 0:00:30]} 18. Kg2 {[%emt 0:00:30]} Bf4 {[%emt 0:00:30]} 19. Rh4 {[%emt 0:00:30]} Qd8 {[%emt 0:00:30]} 20. Qh1 {[%emt 0:00:30]} Bh6 {[%emt 0:00:30]} 21. Kf2 {[%emt 0:00:30]} Qg5 {[%emt 0:00:30]} 22. Rxh6 {[%emt 0:00:30]} gxh6 {[%emt 0:00:30]} 23. Qe1 {[%emt 0:00:30]} Qh4+ {[%emt 0:00:30]} 24. Kg2 {[%emt 0:00:30]} Qxe1 {[%emt 0:00:30]} 25. Rxe1 {[%emt 0:00:30]} fxg4 {[%emt 0:00:30]} 26. fxg4 {[%emt 0:00:30]} Rf6 {[%emt 0:00:30]} 27. Rf1 {[%emt 0:00:30]} Rxf1 {[%emt 0:00:30]} 28. Bxf1 {[%emt 0:00:30]} Kg7 {[%emt 0:00:30]} 29. Bd3 {[%emt 0:00:30]} Re8 {[%emt 0:00:30]} 30. Nxa7 {[%emt 0:00:30]} Nc7 {[%emt 0:00:30]} 31. Nb5 {[%emt 0:00:30]} Nxb5 {[%emt 0:00:30]} 32. Bxb5 {[%emt 0:00:30]} Re7 {[%emt 0:00:30]} 33. Kf3 {[%emt 0:00:30]} e5 {[%emt 0:00:30]} 34. Ke3 {[%emt 0:00:30]} Kf6 {[%emt 0:00:30]} 35. Bd3 {[%emt 0:00:30]} b6 {[%emt 0:00:30]} 36. Bc2 {[%emt 0:00:30]} Rg7 {[%emt 0:00:30]} 37. Bd1 {[%emt 0:00:30]} h5 {[%emt 0:00:30]} 38. dxe5+ {[%emt 0:00:30]} Kxe5 {[%emt 0:00:30]} 39. gxh5 {[%emt 0:00:30]} Rg3+ {[%emt 0:00:30]} 40. Kf2 {[%emt 0:00:30]} Kf4 {[%emt 0:00:30]} 41. Be2 {[%emt 0:00:30]} h6 {[%emt 0:00:30]} 42. c4 {[%emt 0:00:30]} dxc4 {[%emt 0:00:30]} 43. Bxc4 {[%emt 0:00:30]} Rh3 {[%emt 0:00:30]} 44. b4 {[%emt 0:00:30]} Rxh5 {[%emt 0:00:30]} 45. Bf7 {[%emt 0:00:30]} Rh2+ {[%emt 0:00:30]} 46. Ke1 Ke3 {[%emt 0:00:30]} 47. Kd1 {[%emt 0:01:00]} Ke4 {[%emt 0:00:30]} 0-1

[Event "XIII Mediterranean Championship 2023"]
[Site "Castell-Platja d Aro"]
[Date "2023.11.06"]
[Round "4.31"]
[White "Giro Castellet, Esteve"]
[Black "Delbos, Jean-Louis"]
[Result "1/2-1/2"]
[ECO "D07"]
[WhiteElo "1633"]
[BlackElo "1573"]
[Annotator "NA RC"]
[PlyCount "49"]
[EventDate "2023.10.26"]
[EventType "swiss"]
[EventCountry "ESP"]
[SourceTitle "playchess.com"]
[Source "ChessBase"]
[SourceQuality "1"]
[TimeControl "5400+30"]

1. d4 {[%emt 0:00:04]} d5 {[%emt 0:00:12]} 2. c4 {[%emt 0:00:14]} Nc6 {[%emt 0:00:22]} 3. e3 {[%emt 0:00:31]} e5 {[%emt 0:00:28]} 4. cxd5 {[%emt 0:03:25]} Qxd5 {[%emt 0:01:04]} 5. Nc3 {[%emt 0:00:44]} Bb4 {[%emt 0:00:24]} 6. Bd2 {[%emt 0:02:05]} Bxc3 {[%emt 0:01:04]} 7. Bxc3 {[%emt 0:00:09]} exd4 {[%emt 0:02:21]} 8. exd4 {[%emt 0:00:32]} Nf6 {[%emt 0:01:30]} 9. Nf3 {[%emt 0:01:19]} Bg4 {[%emt 0:02:14]} 10. Be2 {[%emt 0:00:26]} O-O {[%emt 0:04:39]} 11. O-O {[%emt 0:00:03]} Rfe8 {[%emt 0:03:01]} 12. Re1 {[%emt 0:09:33]} Rad8 {[%emt 0:04:44]} 13. Qd3 {[%emt 1:17:55]} Qh5 {[%emt 1:14:57]} 14. Bd1 {[%emt 0:00:00]} Rxe1+ {[%emt 0:00:00]} 15. Nxe1 {[%emt 0:00:00]} Nxd4 {[%emt 0:00:00]} 16. Bxd4 {[%emt 0:00:00]} c5 {[%emt 0:00:00]} 17. Bxg4 {[%emt 0:00:00]} Qxg4 {[%emt 0:00:00]} 18. Nf3 {[%emt 0:00:00]} cxd4 {[%emt 0:00:00]} 19. h3 {[%emt 0:00:00]} Qe6 {[%emt 0:00:00]} 20. b3 {[%emt 0:00:00]} Nh5 {[%emt 0:00:00]} 21. Re1 {[%emt 0:00:00]} Qf6 {[%emt 0:00:00]} 22. Qxd4 {[%emt 0:00:00]} Qxd4 {[%emt 0:00:00]} 23. Nxd4 {[%emt 0:00:00]} Kf8 {[%emt 0:00:00]} 24. Nf3 {[%emt 0:00:00]} Nf4 {[%emt 0:00:00]} 25. h4 {[%emt 0:00:00]} 1/2-1/2